[Event "Szansa Chess Open 2022"]
[Site "Warsaw"]
[Date "2022.09.18"]
[Round "10.18"]
[White "Adamski, Adam"]
[Black "Klim, Filip"]
[Result "1/2-1/2"]
[ECO "B20"]
[WhiteElo "1886"]
[BlackElo "2011"]
[Annotator "TA"]
[PlyCount "281"]
[EventDate "2022.09.17"]
[EventCountry "POL"]
[SourceTitle "playchess.com"]
[Source "ChessBase"]
[SourceQuality "1"]
[TimeControl "900+10"]

{[%evp 9,281,25,51,48,49,50,50,50,54,54,51,26,32,26,29,22,52,27,51,32,16,-49,-49,-47,-48,-49,-61,-91,-54,-122,-115,-127,-135,-117,-120,-253,-246,-284,-241,-236,-240,-237,-187,-239,-236,-248,-241,-241,-234,-277,-262,-325,-251,-354,-339,-342,-207,-200,-104,-245,-227,-166,-77,-77,-75,-73,-8,-8,0,0,0,0,0,0,0,0,22,25,84,76,88,61,88,88,88,78,88,88,88,88,88,88,88,88,88,88,88,0,0,0,0,0,0,0,0,0,0,0,0,0,0,0,0,0,7,7,7,7,8,7,8,8,8,8,8,8,8,8,8,8,8,8,8,8,8,8,8,7,7,7,7,7,8,7,7,7,7,7,8,8,8,7,8,8,8,8,8,8,8,8,8,8,8,8,8,8,8,8,8,8,8,8,8,8,8,8,8,8,8,8,8,7,7,7,7,7,8,8,8,8,8,8,8,8,8,8,8,8,8,8,8,0,0,0,0,0,0,0,0,0,0,0,0,0,0,0,0,0,0,0,0,0,0,0,0,0,0,0,0,0,0,0,0,0,0,0,0,0,0,0,0,0,0,0,0,0,0,0,0,0,0,0,0,0,0,0,0,0,0,0,0,0,0,0,0,0,0,0,0,0,0,0,0,0]} 1. e4 {[%emt 0:00:03]} c5 {[%emt 0:00:01]} 2. b3 {[%emt 0:00:03]} Nc6 {[%emt 0:00:20]} 3. Bb2 {[%emt 0:00:02]} e6 {[%emt 0:00:41]} 4. Nf3 {[%emt 0:01:15]} d5 {[%emt 0:00:17]} 5. Bb5 {[%emt 0:00:06]} dxe4 {[%emt 0:01:23]} 6. Ne5 {[%emt 0:00:04] B40: Sicilian: 2...e6, Unusual lines.} Bd7 {[%emt 0:00:27]} 7. Bxc6 {[%emt 0:00:17]} Bxc6 {[%emt 0:01:05]} 8. Nxc6 {[%emt 0:00:03] White is slightly better.} ({Reject} 8. Qh5 Qc7 $15) 8... bxc6 {[%emt 0:00:02]} 9. Qe2 {[%emt 0:00:12]} Nf6 {[%emt 0:00:34] [#]} 10. Bxf6 $146 {[%emt 0:02:02]} ({Predecessor:} 10. Nc3 Be7 11. Nxe4 O-O 12. O-O Nxe4 13. Qxe4 Qxd2 14. Rad1 Qb4 15. c4 Rfd8 16. Qxc6 {½-½ (41) Lewtak,D (2377)-Godzwon,I (2265) Dzwirzyno 2019}) 10... Qxf6 {[%emt 0:00:04]} 11. Nc3 {[%emt 0:00:01]} Be7 {[%emt 0:02:14][%cal Bf8e7,Be7f6,Bf6d4][%mdl 32]} 12. O-O {[%emt 0:00:13]} O-O {[%emt 0:00:18]} 13. Qxe4 {[%emt 0:00:06]} Rad8 {[%emt 0:00:19]} 14. Qxc6 {[%emt 0:00:40]} Qf4 {[%emt 0:01:47]} 15. d3 {[%emt 0:03:03]} (15. Ne4 $11) 15... Bf6 $1 $15 {[%emt 0:00:27]} 16. Ne2 {[%emt 0:00:07]} Qd2 {[%emt 0:00:31]} 17. Rae1 {[%emt 0:00:04]} Qxc2 {[%emt 0:00:04]} 18. Qa4 {[%emt 0:01:20]} Rxd3 {[%emt 0:00:41]} 19. Qxa7 {[%emt 0:00:15]} (19. Ng3 $1 $15) 19... Rd2 $17 {[%emt 0:00:11][%csl LRa2,LRe2]} 20. Ng3 {[%emt 0:00:06]} Bd4 {[%emt 0:00:36][%cal Rd2f2]} 21. Ne4 {[%emt 0:00:05]} Qxa2 {[%emt 0:00:36]} 22. Qb7 {[%emt 0:00:05]} (22. Qxa2 $17 Rxa2 23. Rc1) 22... Rc2 $19 {[%emt 0:00:50]} 23. b4 {[%emt 0:01:05]} f5 {[%emt 0:00:53]} 24. Nxc5 {[%emt 0:00:04]} Rxf2 $40 {[%emt 0:00:31][%mdl 128] Black attacks with force.} 25. Kh1 {[%emt 0:00:05]} Rxf1+ {[%emt 0:02:16]} 26. Rxf1 {[%emt 0:00:01]} Qc4 {[%emt 0:00:07][%csl LRc5,LRf1][%cal Rc4f1] [#]} 27. Qa6 {[%emt 0:00:25]} Qxa6 {[%emt 0:01:38]} ({Weaker is} 27... Qxb4 28. Nxe6 Rb8 29. Nxd4 Qxd4 30. Qe6+ Kh8 31. Qxf5 $11) 28. Nxa6 {[%emt 0:00:01][%mdl 4096] Endgame KRB-KRN} Rc8 {[%emt 0:00:10]} 29. Rb1 {[%emt 0:00:15]} e5 {[%emt 0:00:14]} 30. b5 {[%emt 0:00:02]} e4 {[%emt 0:00:02] ...e3 is the strong threat.} 31. g3 {[%emt 0:00:00]} (31. Nb4 $142) 31... Bb6 {[%emt 0:00:05]} 32. Nb4 {[%emt 0:00:02]} Rd8 {[%emt 0:00:32] Against Nd5} 33. Nc6 {[%emt 0:00:08]} Rd2 {[%emt 0:00:06]} (33... Rd7 $19 34. Ne5 Rc7) 34. Ne7+ {[%emt 0:00:02]} (34. Ne5 $17 Bd4 35. Nc6) 34... Kf7 {[%emt 0:00:04]} 35. Nxf5 {[%emt 0:00:02]} e3 {[%emt 0:00:02]} (35... g6 $19 {is more deadly.} 36. Nh4 Ke6) 36. Re1 $17 {[%emt 0:01:00]} e2 {[%emt 0:00:03]} 37. Kg2 {[%emt 0:00:03]} Kf6 {[%emt 0:00:31]} ({Black should try} 37... h5 $17 {And now ...g6 would win.} 38. Kf3 g5) 38. g4 $11 {[%emt 0:00:58]} g6 {[%emt 0:00:04]} 39. Ng3 {[%emt 0:00:05] aiming for Ne4+.} Rb2 {[%emt 0:00:23]} 40. Rxe2 {[%emt 0:01:15]} Rxb5 {[%emt 0:00:02]} 41. Ne4+ {[%emt 0:00:01]} Kg7 {[%emt 0:00:10]} 42. Rd2 {[%emt 0:01:05]} Be3 {[%emt 0:00:33]} 43. Rd7+ {[%emt 0:00:01]} Kh6 {[%emt 0:00:12] [#]} (43... Kf8 $11) 44. h4 $1 $16 {[%emt 0:00:08][%cal Bh2h4,Bh4h5][%mdl 32] Threatening mate with Nf6.} g5 {[%emt 0:00:09]} 45. Ng3 {[%emt 0:00:45]} ({Of course not} 45. Nxg5 $6 Bxg5 46. Rd6+ Kg7 47. hxg5 Rxg5 $11) 45... Bf4 {[%emt 0:00:10] Strongly threatening ...Rb2+.} 46. Nf5+ {[%emt 0:00:07]} Kg6 {[%emt 0:00:01]} 47. h5+ {[%emt 0:00:06]} Kf6 {[%emt 0:00:01]} 48. Rxh7 {[%emt 0:00:03]} Rb2+ {[%emt 0:00:01]} 49. Kf3 {[%emt 0:00:13]} Rb3+ {[%emt 0:00:05]} 50. Ke4 {[%emt 0:00:15]} Rb4+ {[%emt 0:00:06]} 51. Kd5 {[%emt 0:00:48] White is more active.} Rb5+ {[%emt 0:00:02]} 52. Kc4 {[%emt 0:00:21]} Rb1 {[%emt 0:00:05]} 53. Nd4 {[%emt 0:00:56]} (53. Nh6 $16) 53... Rg1 $1 $11 {[%emt 0:00:16] The position is equal.} 54. Rh6+ {[%emt 0:00:03]} Kf7 {[%emt 0:00:07]} 55. Kd5 {[%emt 0:00:37]} Rxg4 {[%emt 0:00:06]} 56. Rh7+ {[%emt 0:00:02]} Kf6 {[%emt 0:00:12]} 57. Rh6+ {[%emt 0:00:32]} Kf7 $1 {[%emt 0:00:04]} 58. Nf5 {[%emt 0:00:18]} Rg1 {[%emt 0:00:14]} 59. Ra6 {[%emt 0:00:06]} g4 {[%emt 0:00:24]} 60. Ke4 {[%emt 0:00:01]} Bd2 {[%emt 0:00:14]} 61. h6 {[%emt 0:00:09]} Bxh6 {[%emt 0:00:03]} 62. Nxh6+ {[%emt 0:00:02] KRN-KR} Ke7 {[%emt 0:00:03]} 63. Nf5+ {[%emt 0:00:42]} Kd7 {[%emt 0:00:01]} 64. Kf4 {[%emt 0:00:05]} Rf1+ {[%emt 0:00:25]} 65. Kxg4 {[%emt 0:00:02]} Rg1+ {[%emt 0:00:05]} 66. Kf4 {[%emt 0:00:02]} Rf1+ {[%emt 0:00:06]} 67. Ke4 {[%emt 0:00:01]} Re1+ {[%emt 0:00:05]} 68. Ne3 {[%emt 0:00:02]} Ke7 {[%emt 0:00:04]} 69. Kd4 {[%emt 0:00:05]} Kd7 {[%emt 0:00:07]} 70. Nc4 {[%emt 0:00:23]} Rd1+ {[%emt 0:00:14]} 71. Kc5 {[%emt 0:00:03]} Ke7 {[%emt 0:00:06]} 72. Ne3 {[%emt 0:00:32]} Rd3 {[%emt 0:00:32]} 73. Nf5+ {[%emt 0:00:04]} Kf7 {[%emt 0:00:03]} 74. Nd4 {[%emt 0:00:03]} Rd1 {[%emt 0:00:17]} 75. Kd5 {[%emt 0:00:01]} Re1 {[%emt 0:00:03]} 76. Rb6 {[%emt 0:00:10]} Rd1 {[%emt 0:00:12]} 77. Rb2 {[%emt 0:00:51]} Kf6 {[%emt 0:00:10]} 78. Rf2+ {[%emt 0:00:02]} Ke7 {[%emt 0:00:16]} 79. Ke5 {[%emt 0:00:08]} Re1+ {[%emt 0:00:02]} 80. Ne2 {[%emt 0:00:02]} Ra1 {[%emt 0:00:08]} 81. Nc3 {[%emt 0:00:14]} Re1+ {[%emt 0:00:10]} 82. Ne4 {[%emt 0:00:03]} Ra1 {[%emt 0:00:09]} 83. Re2 {[%emt 0:00:22]} Ra5+ {[%emt 0:00:04]} 84. Kd4 {[%emt 0:00:02]} Ra4+ {[%emt 0:00:19]} 85. Kd5 {[%emt 0:00:05] Nc5+ would kill now.} Ra5+ {[%emt 0:00:10]} 86. Nc5+ {[%emt 0:00:08]} Kf6 {[%emt 0:00:05]} 87. Rf2+ {[%emt 0:00:04]} Ke7 {[%emt 0:00:06]} 88. Rf3 {[%emt 0:01:14]} Ra1 {[%emt 0:00:10]} 89. Re3+ {[%emt 0:00:18]} Kf6 {[%emt 0:00:08]} 90. Ne4+ {[%emt 0:00:06]} Kf5 {[%emt 0:00:22]} 91. Rf3+ {[%emt 0:00:02]} Kg4 {[%emt 0:00:04]} 92. Rf8 {[%emt 0:00:06]} Ra5+ {[%emt 0:00:10]} 93. Nc5 {[%emt 0:00:08]} Ra1 {[%emt 0:00:06]} 94. Ke5 {[%emt 0:00:08]} Ra5 {[%emt 0:00:18]} 95. Rg8+ {[%emt 0:00:18]} Kf3 {[%emt 0:00:03]} 96. Kd4 {[%emt 0:00:03]} Ra1 {[%emt 0:00:09]} 97. Rf8+ {[%emt 0:00:06]} Kg4 {[%emt 0:00:06]} 98. Nd3 {[%emt 0:00:16]} Ra4+ {[%emt 0:00:05]} 99. Ke3 {[%emt 0:00:02]} Kg5 {[%emt 0:00:08]} 100. Rf1 {[%emt 0:00:06]} Kg6 {[%emt 0:00:18]} 101. Nc5 {[%emt 0:00:18]} Ra3+ {[%emt 0:00:19]} 102. Ke4 {[%emt 0:00:05]} Ra2 {[%emt 0:00:10]} 103. Ke5 {[%emt 0:00:12]} Ra5 {[%emt 0:00:09]} 104. Rc1 {[%emt 0:00:09]} Ra2 {[%emt 0:00:09] Inhibits Rc2.} 105. Rg1+ {[%emt 0:00:16]} Kf7 {[%emt 0:00:03]} 106. Rf1+ {[%emt 0:00:07]} Ke7 {[%emt 0:00:19]} 107. Rh1 {[%emt 0:00:29]} Re2+ {[%emt 0:00:04]} 108. Ne4 {[%emt 0:00:04]} Kd7 {[%emt 0:00:09]} 109. Kd5 {[%emt 0:00:01]} Kc7 {[%emt 0:00:06]} 110. Rh3 {[%emt 0:00:17]} Re1 {[%emt 0:00:12]} 111. Rd3 {[%emt 0:00:06]} Rh1 {[%emt 0:00:14]} 112. Ng3 {[%emt 0:00:30]} Ra1 {[%emt 0:00:13]} 113. Rc3+ {[%emt 0:00:09]} Kd7 {[%emt 0:00:07]} 114. Rc5 {[%emt 0:00:12]} Rd1+ {[%emt 0:00:10]} 115. Ke5 {[%emt 0:00:04]} Re1+ {[%emt 0:00:08]} 116. Ne4 {[%emt 0:00:04]} Re2 {[%emt 0:00:12]} 117. Kd5 {[%emt 0:00:05]} Re1 {[%emt 0:00:12]} 118. Rc2 {[%emt 0:00:13]} Rd1+ {[%emt 0:00:05]} 119. Nd2 {[%emt 0:00:04]} Rh1 {[%emt 0:00:05]} 120. Nc4 {[%emt 0:00:14]} Rd1+ {[%emt 0:00:08]} 121. Nd2 {[%emt 0:00:17]} Rh1 {[%emt 0:00:02]} 122. Nc4 {[%emt 0:00:55]} Rd1+ {[%emt 0:00:05]} 123. Kc5 {[%emt 0:00:01]} Re1 {[%emt 0:00:14] Prevents Re2.} 124. Rd2+ {[%emt 0:00:23]} Ke6 {[%emt 0:00:08]} 125. Rd6+ {[%emt 0:00:05]} Kf5 {[%emt 0:00:16]} 126. Rd8 {[%emt 0:00:18]} Kf4 {[%emt 0:00:21]} 127. Rf8+ {[%emt 0:00:07]} Kg3 {[%emt 0:00:03]} 128. Nd2 {[%emt 0:00:12]} Re2 {[%emt 0:00:14]} 129. Nc4 {[%emt 0:00:22]} Re7 {[%emt 0:00:13]} 130. Nd6 {[%emt 0:00:11] White threatens Nf5+ and mate.} Re1 {[%emt 0:00:17]} 131. Kd4 {[%emt 0:00:06]} Rd1+ {[%emt 0:00:20]} 132. Ke5 {[%emt 0:00:02]} Kg2 {[%emt 0:00:12]} 133. Ne4 {[%emt 0:00:09] Against Rd2} Rd7 {[%emt 0:00:10]} 134. Kf4 {[%emt 0:00:07]} Rg7 {[%emt 0:00:10] Against Rg8} 135. Ke3 {[%emt 0:00:10]} Ra7 {[%emt 0:00:22]} 136. Rg8+ {[%emt 0:00:00]} Kh3 {[%emt 0:00:12]} 137. Nf2+ {[%emt 0:00:00]} Kh4 {[%emt 0:00:04]} 138. Nd3 {[%emt 0:00:00]} Ra3 {[%emt 0:00:12]} 139. Ke4 {[%emt 0:00:07]} Ra4+ {[%emt 0:00:03]} 140. Kf5 {[%emt 0:00:03]} Ra5+ {[%emt 0:00:04]} 141. Ne5 {[%emt 0:00:02] And White is the lucky defender.  Weighted Error Value: White=0.22 (precise) /Black=0.17 (very precise)} 1/2-1/2

[Event "Szansa Chess Open 2022"]
[Site "Warsaw"]
[Date "2022.09.18"]
[Round "10.19"]
[White "Rak, Maciej"]
[Black "Vasynda, Oleksandr"]
[Result "1/2-1/2"]
[ECO "B21"]
[WhiteElo "1866"]
[BlackElo "1866"]
[Annotator "NA COMBH"]
[PlyCount "55"]
[EventDate "2022.09.17"]
[EventCountry "POL"]
[SourceTitle "playchess.com"]
[Source "ChessBase"]
[SourceQuality "1"]
[TimeControl "900+10"]

1. e4 {[%emt 0:00:01]} c5 {[%emt 0:00:01]} 2. d4 {[%emt 0:00:01]} cxd4 {[%emt 0:00:02]} 3. c3 {[%emt 0:00:01]} dxc3 {[%emt 0:00:02]} 4. Nxc3 {[%emt 0:00:01]} Nc6 {[%emt 0:00:01]} 5. Nf3 {[%emt 0:00:02]} d6 {[%emt 0:00:05]} 6. Bc4 {[%emt 0:00:02]} e6 {[%emt 0:00:01]} 7. O-O {[%emt 0:00:05]} Nf6 {[%emt 0:00:03]} 8. Qe2 {[%emt 0:00:02]} Be7 {[%emt 0:00:04]} 9. Rd1 {[%emt 0:00:02]} e5 {[%emt 0:00:01]} 10. h3 {[%emt 0:01:10]} O-O {[%emt 0:00:06]} 11. a3 {[%emt 0:00:49]} a6 {[%emt 0:00:04]} 12. Bg5 {[%emt 0:00:16]} b5 {[%emt 0:00:40]} 13. Ba2 {[%emt 0:01:51]} Bb7 {[%emt 0:00:13]} 14. Rd2 {[%emt 0:01:11]} h6 {[%emt 0:00:19]} 15. Bxf6 {[%emt 0:00:25]} Bxf6 {[%emt 0:00:19]} 16. Nd5 {[%emt 0:00:39]} Bg5 {[%emt 0:02:07]} 17. Rd3 {[%emt 0:01:37]} Kh8 {[%emt 0:04:38]} 18. Rad1 {[%emt 0:01:41]} f5 {[%emt 0:00:46]} 19. Nxg5 {[%emt 0:01:32]} Qxg5 {[%emt 0:00:26]} 20. Nc7 {[%emt 0:01:16]} Nd4 {[%emt 0:00:45]} 21. Rxd4 {[%emt 0:01:58]} exd4 {[%emt 0:00:03]} 22. Ne6 {[%emt 0:01:02]} Qg6 {[%emt 0:00:46]} 23. Nxf8 {[%emt 0:00:11]} Rxf8 {[%emt 0:00:02]} 24. Bd5 {[%emt 0:00:18]} Bxd5 {[%emt 0:00:12]} 25. exd5 {[%emt 0:00:01]} Qf6 {[%emt 0:00:48]} 26. Qd3 {[%emt 0:01:44]} Re8 {[%emt 0:01:48]} 27. Kf1 {[%emt 0:00:01]} Qe5 {[%emt 0:00:10]} 28. Qxd4 {[%emt 0:00:51]} 1/2-1/2

[Event "Szansa Chess Open 2022"]
[Site "Warsaw"]
[Date "2022.09.18"]
[Round "10.20"]
[White "Smykalo, Severyn"]
[Black "Moscicka, Pola"]
[Result "1-0"]
[ECO "E32"]
[WhiteElo "1840"]
[BlackElo "1958"]
[Annotator "TA"]
[PlyCount "91"]
[EventDate "2022.09.17"]
[EventCountry "POL"]
[SourceTitle "playchess.com"]
[Source "ChessBase"]
[SourceQuality "1"]
[TimeControl "900+10"]

{[%evp 15,91,-10,-6,0,-4,-16,-8,-30,0,-5,0,-12,-10,-10,-11,-14,-14,-14,0,0,0,-20,-10,-20,0,0,8,-14,19,0,8,0,0,0,0,7,357,0,0,-5,-7,-6,0,0,0,-10,13,8,133,34,329,314,391,385,850,832,1189,1160,1353,1067,1148,1102,1049,705,1500,1387,1482,1445,1824,1773,5785,1130,3155,2585,29989,3500,2412,1754]} 1. d4 {[%emt 0:00:01]} Nf6 {[%emt 0:00:01]} 2. c4 {[%emt 0:00:01]} e6 {[%emt 0:00:01]} 3. Nc3 {[%emt 0:00:01]} Bb4 {[%emt 0:00:01]} 4. Qc2 {[%emt 0:00:01]} O-O {[%emt 0:00:05]} 5. Nf3 {[%emt 0:00:02]} d5 {[%emt 0:00:14]} 6. a3 {[%emt 0:00:01]} Bxc3+ {[%emt 0:00:04]} 7. Qxc3 {[%emt 0:00:02]} b6 {[%emt 0:00:49]} 8. g3 {[%emt 0:00:29]} Bb7 {[%emt 0:00:20]} 9. Bg2 {[%emt 0:00:02] E32: Nimzo-Indian: Classical (4 Qc2): 4...0-0.} Nbd7 {[%emt 0:02:17]} 10. O-O {[%emt 0:00:08]} Rc8 {[%emt 0:00:45] [#]} 11. Bf4 $146 {[%emt 0:01:21] The position is equal.} ({Predecessor:} 11. cxd5 exd5 12. Rd1 Re8 13. Ne5 c6 14. Bg5 h6 15. Bf4 Nxe5 16. Bxe5 Qe7 17. Bxf6 Qxf6 {0-1 (60) Kim,S (2295)-Zhou,Q (2229) Chess.com INT 2020}) 11... Qe7 {[%emt 0:00:26]} 12. Rac1 {[%emt 0:01:05]} c5 {[%emt 0:00:20]} 13. dxc5 {[%emt 0:00:05]} Nxc5 {[%emt 0:01:23]} 14. b4 {[%emt 0:02:19]} Nce4 {[%emt 0:00:02][%csl LRc3,LRc4]} 15. Qd4 {[%emt 0:00:07]} dxc4 {[%emt 0:00:58]} 16. Rxc4 {[%emt 0:00:07]} Rxc4 {[%emt 0:00:05]} 17. Qxc4 {[%emt 0:00:03]} Rc8 {[%emt 0:00:03]} 18. Qb3 {[%emt 0:00:28]} Nc3 {[%emt 0:04:00]} 19. Re1 {[%emt 0:00:46]} Bd5 {[%emt 0:00:13]} 20. Qb2 {[%emt 0:00:04]} Na4 {[%emt 0:00:21]} 21. Qa1 {[%emt 0:00:02]} Nc3 {[%emt 0:01:33]} (21... Ne4 $5 {[%cal Re4c3]}) 22. Be5 {[%emt 0:00:23]} Nb5 {[%emt 0:00:32]} 23. a4 {[%emt 0:00:44]} Nd6 {[%emt 0:00:03]} 24. Rc1 {[%emt 0:00:34]} Rxc1+ {[%emt 0:00:16]} 25. Qxc1 {[%emt 0:00:01]} Nc4 $2 {[%emt 0:00:02][%mdl 8192] [#]} (25... Nde8 $11 {and Black stays safe.}) 26. Bc3 $2 {[%emt 0:00:02] This bishop pair is nice.} (26. Bxf6 $18 gxf6 27. e4) 26... h6 $11 {[%emt 0:01:03]} 27. Qf4 {[%emt 0:00:13]} Ne4 {[%emt 0:00:22]} (27... a5 {feels hotter.} 28. Qb8+ Kh7 29. bxa5 Ne4) 28. Be1 {[%emt 0:00:40]} Qe8 {[%emt 0:01:03]} 29. b5 {[%emt 0:01:29]} Nc5 {[%emt 0:00:04]} 30. Qc7 {[%emt 0:00:08]} Qa8 {[%emt 0:00:23]} 31. a5 {[%emt 0:00:24]} (31. Bb4 {is interesting.} Qb7 32. Qd8+ Kh7 33. a5) 31... Kh8 {[%emt 0:01:18] White leaves nothing to chance now.} (31... Ne4 $11) 32. a6 {[%emt 0:01:53]} (32. Bb4 $16) 32... Kg8 $2 {[%emt 0:00:24][%mdl 8192]} (32... Na3 $1 $14) 33. Bb4 $18 {[%emt 0:00:44]} Na4 {[%emt 0:00:41]} 34. Bf1 {[%emt 0:01:37]} Ncb2 $2 {[%emt 0:00:26]} (34... g6 35. Nd4 Na5) 35. Ne5 {[%emt 0:00:14]} Qe8 {[%emt 0:00:06]} 36. Nc6 {[%emt 0:00:29]} Bc4 {[%emt 0:00:05]} 37. e4 {[%emt 0:00:21]} Bxf1 {[%emt 0:00:02]} 38. Kxf1 {[%emt 0:00:01]} Nd3 {[%emt 0:00:14]} 39. Bd2 {[%emt 0:00:13]} Nab2 {[%emt 0:00:12]} 40. Qxa7 {[%emt 0:00:24] [#] Black must now prevent Qe7.} Nc4 {[%emt 0:00:09]} 41. Bc3 {[%emt 0:00:13] aiming for Qe7.} Kh7 {[%emt 0:00:22]} 42. Qe7 {[%emt 0:00:11]} Qa8 {[%emt 0:00:09]} 43. Qb7 {[%emt 0:00:03]} (43. Qxf7 $142 Nde5 44. Bxe5) 43... Qe8 {[%emt 0:00:06]} 44. a7 {[%emt 0:00:03]} Nc5 {[%emt 0:00:09]} 45. Qb8 {[%emt 0:00:24]} (45. a8=Q $142 Qxa8 46. Qxa8 Kg6 47. Ne7+ Kg5 48. Qg8 Ne5 49. Bxe5 Nxe4 50. Qxf7 Nxg3+ 51. fxg3 Kg4 52. Qf4+ Kh5 53. Qh4#) 45... Qd7 {[%emt 0:00:05]} 46. Qd8 {[%emt 0:00:02] Weighted Error Value: White=0.28 (precise) /Black=0.74} 1-0